fUSD/lending_fUSD_20240712
["ID","MTS","AMOUNT","RATE_DAILY","PERIOD"]
[331833554,1720777841459,-15993.81369969,0.000135,2]
[331833555,1720777841470,-17462.9400844,0.000135,2]
[331833556,1720777841481,-1819.99999776,0.000135,2]
[331833598,1720777842956,-590.6363332,0.000135,2]
[331833600,1720777842967,-5365.97493632,0.000135,2]
[331833639,1720777844430,-451.76430991,0.000135,2]
[331833640,1720777844441,-35632.47706054,0.000135,2]
[331833641,1720777844486,-271.4104702,0.000135,2]
[331833642,1720777844501,-481072.69274608,0.000135,2]
[331833643,1720777844512,-5087.95758776,0.000135,2]
[331833644,1720777844523,-555.39691933,0.000135,2]
[331833645,1720777844533,-310.96840629,0.000135,2]
[331833646,1720777844544,-1017.6830018,0.000135,2]
[331833647,1720777844555,-400.36535376,0.000135,2]
[331833648,1720777844567,-446.51173508,0.000135,2]
[331833649,1720777844578,-9845.86782378,0.000135,2]
[331833650,1720777844604,-16736.653565,0.000135,2]
[331833651,1720777844616,-281.326473,0.000135,2]
[331833652,1720777844627,-3610.01700887,0.000135,2]
[331833653,1720777844638,-460.32635449,0.000135,2]
[331833654,1720777844651,-3765.60423711,0.000135,2]
[331833655,1720777844662,-383.30696474,0.000135,2]
[331833656,1720777844673,-1754.24021845,0.000135,2]
[331833657,1720777844684,-3990.36814717,0.000135,2]
[331833658,1720777844709,-615.28590621,0.000135,2]
[331833659,1720777844721,-600.64996105,0.000135,2]
[331833669,1720777846378,-6388.41552287,0.000133,2]
[331833670,1720777846389,-2000.0,0.000133,2]
[331833671,1720777846543,-333.81274512,0.000133,2]
[331833672,1720777846554,-488.08122528,0.000133,2]
[331833673,1720777846566,-792.73224283,0.000133,2]
[331833674,1720777846641,-45120.3508639,0.000133,2]
[331833675,1720777846651,-54616.07490659,0.000135,2]
[331833676,1720777846662,-893.89851525,0.000135,2]
[331833677,1720777846673,-1013.0805,0.000135,2]
[331833678,1720777846753,-916.0853216,0.000135,2]
[331833679,1720777904862,306.36663069,0.00011199,2]
[331833680,1720777973957,348.36194352,0.00011199,2]
[331833681,1720777987591,959.860609,0.00011199,2]
[331833682,1720777989369,277.75819822,0.00011199,2]
[331833683,1720777997960,3021.54160838,0.00011199,2]
[331833684,1720777997991,39.65164488,0.00011199,2]
[331833686,1720778046313,3489.32875198,0.00011199,2]
[331833687,1720778046343,1896.97665289,0.00011199,2]
[331833688,1720778052554,475.82726567,0.00011199,2]
[331833689,1720778078523,382.55,0.00010275,2]
[331833690,1720778155378,167.29932255,0.00011199,2]
[331833691,1720778178168,424.88086916,0.00011199,2]
[331833692,1720778264415,283.53670071,0.00011199,2]
[331833693,1720778320757,227.32181018,0.00011199,2]
[331833694,1720778400172,200.0,0.00011199,2]
[331833696,1720778455075,155.0,0.00011199,2]
[331833697,1720778648812,19.2521878,0.00011199,2]
[331833698,1720778648839,147.95527755,0.00011199,2]
[331833699,1720778655076,363.42,9.869e-05,2]
[331833703,1720778840289,227.32181018,0.00011199,2]
[331833704,1720778870308,227.32181018,0.00011199,2]
[331833705,1720778882683,200.0,0.00011199,2]
[331833706,1720778932654,163.88072823,0.00011199,2]
[331833707,1720778951582,156.52675699,0.00011199,2]
[331833708,1720778953412,167.29932255,0.00011199,2]
[331833709,1720778957954,155.0,0.00011199,2]
[331833711,1720778958411,88.55719766,0.00011199,2]
[331833712,1720778958439,203.73251602,0.00011199,2]
[331833713,1720778958741,498.160899,0.00011199,2]
[331833734,1720779032112,-150.0,0.00011754,2]
[331833736,1720779032122,-143.43812873,0.0001177,2]
[331833738,1720779032134,-106.56187127,0.0001177,2]
[331833739,1720779032143,-962.44,0.00011777,2]
[331833740,1720779032153,-250.0,0.00011779,2]
[331833741,1720779032162,-153.77,0.00011793,2]
[331833742,1720779032173,-4450.22812873,0.00011793,2]
[331833743,1720779032192,-347.60875311,0.00011793,2]
[331833744,1720779032204,-1094.6407865,0.00011793,2]
[331833745,1720779032227,-7796.20197841,0.00011793,2]
[331833746,1720779032236,-616.0,0.00011901,2]
[331833747,1720779032246,-2610.27,0.00011973,2]
[331833748,1720779032258,-308.6,0.00011973,2]
[331833749,1720779032268,-150.99,0.00011973,2]
[331833750,1720779032277,-363.42,0.00012133,2]
[331833751,1720779032286,-999.99,0.00012133,2]
[331833752,1720779032295,-1640.46,0.00012133,2]
[331833753,1720779032304,-170.1,0.00012193,2]
[331833754,1720779032313,-167.88534223,0.00012193,2]
[331833755,1720779032324,-15.05465777,0.00012193,2]
[331833756,1720779032333,-178.97,0.00012273,2]
[331833757,1720779032342,-228.74,0.00012339,2]
[331833758,1720779032352,-1139.98534223,0.00012348,2]
[331833759,1720779032363,-2624.64023062,0.00012348,2]
[331833760,1720779032374,-453.51,0.00012348,2]
[331833761,1720779032386,-2244.63314054,0.00012348,2]
[331833762,1720779032397,-1642.20187421,0.00012348,2]
[331833763,1720779032408,-103.1494124,0.00012348,2]
[331833764,1720779032418,-735.54,0.00012621,2]
[331833765,1720779032427,-735.54,0.00012624,2]
[331833766,1720779032436,-735.54,0.00012628,2]
[331833767,1720779032446,-735.54,0.00012631,2]
[331833768,1720779032456,-735.54,0.00012634,2]
[331833769,1720779032465,-735.54,0.00012638,2]
[331833770,1720779032474,-735.54,0.00012641,2]
[331833771,1720779032483,-735.54,0.00012644,2]
[331833772,1720779032491,-735.54,0.00012648,2]
[331833773,1720779032501,-735.54,0.00012651,2]
[331833774,1720779032512,-735.54,0.00012654,2]
[331833775,1720779032522,-735.54,0.00012658,2]
[331833776,1720779032532,-735.54,0.00012661,2]
[331833777,1720779032541,-735.54,0.00012664,2]
[331833778,1720779032551,-735.54,0.00012668,2]
[331833779,1720779032561,-27142.99559255,0.00012671,2]
[331833780,1720779032571,-735.54,0.00012671,2]
[331833781,1720779032580,-735.54,0.00012674,2]
[331833782,1720779032590,-735.54,0.00012677,2]
[331833783,1720779032599,-735.54,0.00012681,2]
[331833786,1720779032798,-735.54,0.00012684,2]
[331833787,1720779032808,-172.94,0.00013008,2]
[331833788,1720779032818,-20159.18580231,0.00013128,2]
[331833789,1720779032827,-12214.258,0.000132,2]
[331833790,1720779032836,-2500.0,0.000132,2]
[331833791,1720779032847,-150.0,0.00013243,2]
[331833792,1720779032859,-150.0,0.00013262,2]
[331833793,1720779032868,-153.77,0.00013267,2]
[331833794,1720779032877,-150.0,0.00013283,2]
[331833795,1720779032886,-81100.9105,0.000133,2]
[331833796,1720779032895,-2293.1498,0.000133,2]
[331833797,1720779032905,-46324.4108,0.000133,2]
[331833798,1720779032914,-1000.0,0.000133,2]
[331833799,1720779032924,-197.9427257,0.00013305,2]
[331833800,1720779032933,-150.0,0.00013318,2]
[331833801,1720779032942,-554.52997,0.0001336,2]
[331833802,1720779032951,-385.96925274,0.00013372,2]
[331833803,1720779032960,-150.0,0.00013388,2]
[331833804,1720779032969,-616.0,0.00013389,2]
[331833805,1720779032979,-2314.8852,0.000134,2]
[331833806,1720779032988,-559.648773,0.000134,2]
[331833807,1720779032997,-406.592,0.000134,2]
[331833808,1720779033006,-500.0,0.000134,2]
[331833809,1720779033016,-161.16502464,0.000134,2]
[331833810,1720779033025,-160.58690581,0.000134,2]
[331833811,1720779033034,-2491.36198622,0.000134,2]
[331833812,1720779033043,-150.0,0.00013426,2]
[331833813,1720779033053,-8027.39781653,0.0001344,2]
[331833814,1720779033062,-150.0,0.0001348,2]
[331833815,1720779033072,-202.10180196,0.0001349,2]
[331833816,1720779033081,-7150.2400005,0.00013498,2]
[331833817,1720779033090,-515.87508984,0.00013499,2]
[331833818,1720779033100,-900.28136801,0.00013499,2]
[331833819,1720779033109,-150.01,0.00013499,2]
[331833820,1720779033119,-3310.51796856,0.00013499,2]
[331833821,1720779033128,-755.0,0.000135,2]
[331833822,1720779033137,-30049.44946969,0.000135,2]
[331833823,1720779033150,-3300.0,0.000135,2]
[331833824,1720779033182,-1878.55997651,0.000135,2]
[331833825,1720779033193,-1648.23341372,0.000135,2]
[331833826,1720779033205,-2879.4795,0.000135,2]
[331833827,1720779033216,-866.51307678,0.000135,2]
[331833828,1720779033227,-3932.12964903,0.000135,2]
[331833829,1720779033239,-95093.50587338,0.000135,2]
[331833830,1720779033251,-5136.10633996,0.000135,2]
[331833831,1720779033264,-718.07371063,0.000135,2]
[331833832,1720779033276,-592.45237677,0.000135,2]
[331833833,1720779033288,-603.03497768,0.000135,2]
[331833834,1720779033300,-336.000007,0.000135,2]
[331833841,1720779038166,-250.0,0.00011762,2]
[331833843,1720779038178,-300.02,0.00013499,2]
[331833844,1720779038192,-2053.08643675,0.000135,2]
[331833845,1720779038939,-580.4,0.00013499,2]
[331833846,1720779039017,-1592.65686539,0.00013499,2]
[331833847,1720779039029,-33.95511365,0.00013499,2]
[331833848,1720779039040,-568.64168635,0.000135,2]
[331833849,1720779039088,-66356.8770978,0.000135,2]
[331833850,1720779039291,-573.69,0.000135,2]
[331833851,1720779039302,-324.57402223,0.000135,2]
[331833852,1720779039313,-77572.22363308,0.000135,2]
[331833853,1720779039323,-1012020.79580189,0.000135,2]
[331833854,1720779039335,-726.08904086,0.000135,2]
[331833855,1720779039346,-401.05803429,0.000135,2]
[331833856,1720779039360,-344.17843278,0.000135,2]
[331833857,1720779039371,-4890.3988772,0.000135,2]
[331833858,1720779039398,-3154632.81874645,0.000135,2]
[331833871,1720779040126,-33504.42776694,0.000135,2]
[331833873,1720779040137,-427.8153428,0.000135,2]
[331833875,1720779040148,-3814.17533803,0.000135,2]
[331833877,1720779040190,-11553.6,0.000135,2]
[331833878,1720779040201,-674.77624646,0.000135,2]
[331833879,1720779040212,-2078.47176684,0.000135,2]
[331833880,1720779040225,-1440.12649914,0.000135,2]
[331833881,1720779040236,-523.04,0.000135,2]
[331833882,1720779040248,-579.62038,0.000135,2]
[331833885,1720779043904,-1471.34131936,0.00013499,2]
[331833886,1720779043914,-4382.35868064,0.000135,2]
[331833887,1720779043925,-257.77749834,0.000135,2]
[331833888,1720779043940,-489.17891229,0.000135,2]
[331833889,1720779043954,-2885.61287505,0.000135,2]
[331833890,1720779043966,-950.03406387,0.000135,2]
[331833891,1720779043979,-1358.30303484,0.000135,2]
[331833902,1720779044069,-341.83756004,0.000135,2]
[331833931,1720779046260,-884.25601591,0.000135,2]
[331833932,1720779046274,-459172.91872877,0.000135,2]
[331833933,1720779046379,-681.0,0.000135,2]
[331833934,1720779046389,-296.79543901,0.000135,2]
[331833935,1720779046401,-4023.18759903,0.000135,2]
[331833936,1720779046592,-611.7207303,0.000135,2]
[331833937,1720779046605,-5857.8,0.000135,2]
[331833938,1720779046619,-56408.95060526,0.000135,2]
[331833939,1720779046632,-403.53386833,0.000135,2]
[331833940,1720779046663,-472727.18755178,0.000135,2]
[331833941,1720779046859,-553.52773247,0.000135,2]
[331833942,1720779046877,-676.34999997,0.000135,2]
[331833943,1720779046893,-940.63593061,0.000135,2]
[331833944,1720779046904,-799.2376524,0.000135,2]
[331833945,1720779046915,-1869.3662922,0.000135,2]
[331833946,1720779046926,-364.0900299,0.000135,2]
[331833947,1720779046938,-702.02781617,0.000135,2]
[331833948,1720779046949,-5098.07588448,0.000135,2]
[331833950,1720779188519,376.48,0.00010706,2]
[331833952,1720779319313,1500.0,0.00011199,2]
[331833953,1720779376155,722.0207128,0.00011199,2]
[331833954,1720779378227,200.0,0.00011199,2]
[331833956,1720779386231,200.0,0.00011199,2]
[331833957,1720779391054,227.32181018,0.00011199,2]
[331833959,1720779437103,155.0,0.00011199,2]
[331833960,1720779446957,167.20746535,0.00011199,2]
[331833961,1720779447720,471.75778768,0.00011199,2]
[331833963,1720779473441,282.582379,0.00011199,2]
[331833965,1720779476698,200.43257811,0.00011199,4]
[331833967,1720779484927,256.48064281,0.00011199,2]
[331833968,1720779496368,316.0773283,0.00011199,2]
[331833970,1720779503018,279.39969037,0.00011199,2]
[331833972,1720779515509,164.45413991,0.00011199,2]
[331833977,1720779614395,400.0,0.00011199,2]
[331833978,1720779618862,1500.0,0.00011199,2]
[331833980,1720779692186,691.31794685,0.00011199,2]
[331833982,1720779763111,373.31,0.00010332,2]
[331833983,1720779790819,5603.41953432,0.00011199,2]
[331833985,1720779803190,688.65036915,0.00011199,2]
[331833986,1720779807591,2987.54319614,0.00011199,2]
[331833988,1720779831832,363.23326655,0.00011199,2]
[331833990,1720779864562,1014.32314146,0.00011199,2]
[331833991,1720779874081,227.32181018,0.00011199,2]
[331833993,1720779906454,155.0,0.00011199,2]
[331833994,1720779912929,1055.71054162,0.00011199,2]
[331833995,1720779924779,200.0,0.00011199,2]
[331833998,1720779954831,815.45312623,0.00011199,2]
[331833999,1720779956510,4265.28235904,6.94e-05,2]
[331834000,1720779963974,527.41897284,0.00011199,2]
[331834004,1720779989439,251.89538666,0.00011199,2]
[331834005,1720780003732,156.0666465,0.00011199,2]
[331834006,1720780004520,346.68469279,0.00011199,2]
[331834008,1720780010262,311.52885108,0.00011199,2]
[331834009,1720780028891,218.26308981,0.00011199,2]
[331834011,1720780036133,155.4764341,0.00011199,2]
[331834012,1720780038020,303.74358298,0.00011199,2]
[331834014,1720780050765,235.75703101,0.00011199,2]
[331834015,1720780051327,433.7048666,0.00011199,2]
[331834016,1720780066311,205.58920191,0.00011199,2]
[331834017,1720780066484,264.7511771,0.00011199,2]
[331834018,1720780068941,366.80671841,0.00011199,2]
[331834020,1720780076923,400.0,0.00011199,2]
[331834023,1720780088273,209.39464551,0.00011199,2]
[331834024,1720780093937,157.29607944,0.00011199,2]
[331834034,1720780150816,-2683.41361761,0.00011641,2]
[331834036,1720780212613,254.10536199,0.00011199,2]
[331834040,1720780233885,-1184.95354899,0.000118,2]
[331834041,1720780233895,-250.0,0.00012122,2]
[331834042,1720780233905,-300.0,0.00012155,2]
[331834043,1720780233915,-386.42408853,0.00012156,2]
[331834044,1720780233927,-466.63551131,0.00012156,2]
[331834045,1720780233938,-3172.60248449,0.00012156,2]
[331834046,1720780233950,-3264.79091151,0.00012156,2]
[331834047,1720780233962,-2623.158139,0.00012156,2]
[331834048,1720780233974,-6341.88600473,0.00012156,2]
[331834049,1720780233998,-4100.54286043,0.00012156,2]
[331834050,1720780234007,-358.78684232,0.00012302,2]
[331834052,1720780234018,-316.59942391,0.00012302,2]
[331834054,1720780234027,-250.0,0.00012312,2]
[331834056,1720780234037,-685.05836027,0.00012312,2]
[331834059,1720780234055,-6617.23317,0.00012312,2]
[331834060,1720780234067,-505.95034743,0.00012312,2]
[331834061,1720780234085,-8829.9788705,0.00012312,2]
[331834062,1720780234094,-155.0,0.00012314,2]
[331834063,1720780234104,-1000.0,0.00012357,2]
[331834064,1720780234113,-343.86,0.00012362,2]
[331834065,1720780234123,-499.99,0.00012362,2]
[331834066,1720780234133,-170.1,0.00012493,2]
[331834067,1720780234142,-999.99,0.00012493,2]
[331834068,1720780234152,-1000.0,0.00012496,2]
[331834069,1720780234162,-1555.85,0.00012523,2]
[331834070,1720780234171,-234.56,0.00012588,2]
[331834071,1720780234182,-210.6711295,0.00012596,2]
[331834072,1720780234194,-162.6388705,0.00012596,2]
[331834073,1720780234203,-3482.1404201,0.00013,2]
[331834074,1720780234235,-513.905,0.00013,2]
[331834082,1720780238235,-575.48925,0.00013,2]
[331834084,1720780238246,-275.58000008,0.00013,2]
[331834088,1720780238278,-597.4,0.00013,2]
[331834093,1720780238411,-13099.16074315,0.00013,2]
[331834094,1720780238421,-227.32181018,0.00013128,2]
[331834095,1720780238430,-1500.0,0.00013227,2]
[331834096,1720780238440,-150.0,0.00013233,2]
[331834097,1720780238450,-150.0,0.00013308,2]
[331834098,1720780238459,-150.0,0.00013315,2]
[331834099,1720780238471,-155.47158257,0.00013316,2]
[331834100,1720780238481,-420.0,0.00013342,2]
[331834101,1720780238490,-462.1083,0.0001336,2]
[331834102,1720780238500,-500.0,0.00013391,2]
[331834103,1720780238510,-500.0,0.00013392,2]
[331834104,1720780238519,-500.0,0.00013392,2]
[331834105,1720780238528,-318.53,0.00013397,3]
[331834106,1720780238538,-10483.9861,0.00013398,2]
[331834107,1720780238550,-1000.0,0.00013398,2]
[331834109,1720780238560,-635.34536723,0.00013398,2]
[331834111,1720780238570,-173.98552994,0.000134,2]
[331834113,1720780238579,-5176.095,0.000134,2]
[331834115,1720780238591,-161.16502464,0.000134,2]
[331834117,1720780238600,-481.76071743,0.000134,2]
[331834118,1720780238610,-7500.0,0.000134,2]
[331834120,1720780238619,-5930.8234972,0.000134,2]
[331834122,1720780238631,-208.15400611,0.00013423,2]
[331834123,1720780238641,-424.96693983,0.00013472,2]
[331834124,1720780238651,-150.0,0.00013474,2]
[331834125,1720780238661,-173.98552993,0.00013484,2]
[331834126,1720780238670,-9293.30028114,0.00013498,2]
[331834127,1720780238682,-614.32,0.00013498,2]
[331834216,1720780240398,-1786.87844276,0.00013498,2]
[331834218,1720780240410,-768.95049403,0.00013498,2]
[331834220,1720780240421,-9096.64373114,0.00013498,2]
[331834222,1720780240432,-8947.21879473,0.00013498,2]
[331834224,1720780240443,-8943.78386462,0.00013498,2]
[331834226,1720780240455,-9077.54866152,0.00013498,2]
[331834227,1720780240466,-8943.84023489,0.00013498,2]
[331834242,1720780241065,-2216.15994581,0.00013498,2]
[331834243,1720780241077,-307.12513962,0.00013498,2]
[331834244,1720780241089,-58711.5819714,0.00013498,2]
[331834245,1720780241124,-449.03088406,0.00013498,2]
[331834246,1720780241135,-5872.9686168,0.00013498,2]
[331834247,1720780241146,-3364.54855239,0.00013498,2]
[331834248,1720780241192,-14732.19448898,0.00013498,2]
[331834251,1720780243485,-31041.82305361,0.00013498,2]
[331834252,1720780243495,-6938.0817511,0.00013498,2]
[331834253,1720780243505,-9894.8371814,0.00013498,2]
[331834254,1720780243515,-980.89421291,0.00013499,2]
[331834255,1720780243525,-687.0,0.000135,2]
[331834256,1720780243534,-55235.62617496,0.000135,2]
[331834257,1720780243551,-1314379.37391786,0.000135,2]
[331834258,1720780243606,-711.82512358,0.000135,2]
[331834259,1720780243618,-6895.46121284,0.000135,2]
[331834260,1720780243736,-614.29174979,0.000135,2]
[331834261,1720780243748,-117254.11611876,0.000135,2]
[331834262,1720780245383,-6125.98373743,0.000135,2]
[331834277,1720780246467,-235.56257113,0.00013472,2]
[331834278,1720780246479,-2282.32335635,0.000135,2]
[331834279,1720780246491,-2712.53857122,0.000135,2]
[331834280,1720780246504,-611.25730848,0.000135,2]
[331834281,1720780246515,-1651.07245401,0.000135,2]
[331834282,1720780246526,-334.58939694,0.000135,2]
[331834283,1720780246537,-590.82,0.000135,2]
[331834284,1720780246559,-999.49999934,0.000135,2]
[331834285,1720780246571,-312.78003432,0.000135,2]
[331834286,1720780246582,-5877.48859263,0.000135,2]
[331834287,1720780246594,-644.28818466,0.000135,2]
[331834288,1720780246605,-7455.48861531,0.000135,2]
[331834289,1720780246826,-30094.95002287,0.000135,2]
[331834290,1720780246838,-893.59903699,0.000135,2]
[331834291,1720780246852,-738.46245527,0.000135,2]
[331834292,1720780246971,-1092.399956,0.000135,2]
[331834293,1720780246984,-1477.27432903,0.000135,2]
[331834294,1720780246995,-786.25,0.000135,2]
[331834295,1720780247006,-2607.73299922,0.000135,2]
[331834296,1720780247020,-5770.89999999,0.000135,2]
[331834303,1720780285712,299.94931508,0.00011199,2]
[331834307,1720780341630,151.071219,0.00025,62]
[331834308,1720780342165,151.071219,0.00025,62]
[331834309,1720780342979,151.071219,0.00025,62]
[331834310,1720780348559,151.071219,0.00025,63]
[331834311,1720780349315,151.071219,0.00025,63]
[331834312,1720780350096,151.071219,0.00025,63]
[331834313,1720780354370,151.071219,0.00025,64]
[331834314,1720780355174,151.071219,0.00025,64]
[331834315,1720780356043,151.071219,0.00025,64]
[331834316,1720780360352,151.071219,0.00025,65]
[331834317,1720780361386,151.071219,0.00025,65]
[331834318,1720780362132,151.071219,0.00025,65]
[331834319,1720780376286,368.89,0.00010456,2]
[331834320,1720780387116,181.071219,0.00025,69]
[331834321,1720780388018,181.071219,0.00025,69]
[331834322,1720780388882,181.071219,0.00025,69]
[331834323,1720780391771,181.071219,0.00025,69]
[331834324,1720780398007,181.071219,0.00025,70]
[331834325,1720780398816,181.071219,0.00025,70]
[331834326,1720780399598,181.071219,0.00025,70]
[331834327,1720780400572,181.071219,0.00025,70]
[331834328,1720780405279,181.071219,0.00025,71]
[331834329,1720780406079,181.071219,0.00025,71]
[331834330,1720780406859,181.071219,0.00025,71]
[331834331,1720780407662,181.071219,0.00025,71]
[331834332,1720780411956,181.071219,0.00025,72]
[331834333,1720780412776,181.071219,0.00025,72]
[331834335,1720780414048,181.071219,0.00025,72]
[331834337,1720780414462,181.071219,0.00025,72]
[331834339,1720780431162,4238.63235912,0.00011541,2]
[331834340,1720780431349,482.19,0.00011541,2]
[331834341,1720780431378,4232.64480896,0.00011541,2]
[331834342,1720780460175,199.071219,0.00025,76]
[331834343,1720780461143,199.071219,0.00025,76]
[331834344,1720780462107,199.071219,0.00025,76]
[331834345,1720780467248,199.071219,0.00025,77]
[331834346,1720780467702,199.071219,0.00025,77]
[331834347,1720780468510,199.071219,0.00025,77]
[331834348,1720780486627,199.071219,0.00025,78]
[331834349,1720780487412,199.071219,0.00025,78]
[331834350,1720780488542,199.071219,0.00025,78]
[331834351,1720780492725,199.071219,0.00025,79]
[331834352,1720780493547,199.071219,0.00025,79]
[331834353,1720780494291,199.071219,0.00025,79]
[331834355,1720780536895,211.071219,0.00025,83]
[331834356,1720780537756,211.071219,0.00025,83]
[331834357,1720780542172,211.071219,0.00025,84]
[331834358,1720780543032,211.071219,0.00025,84]
[331834359,1720780543252,1538.26608865,0.00011199,2]
[331834360,1720780547266,211.071219,0.00025,85]
[331834361,1720780548128,211.071219,0.00025,85]
[331834362,1720780552363,211.071219,0.00025,86]
[331834363,1720780553209,211.071219,0.00025,86]
[331834364,1720780583740,151.071219,0.00027,120]
[331834365,1720780584653,151.071219,0.00027,120]
[331834366,1720780585427,151.071219,0.00027,120]
[331834369,1720780586436,151.071219,0.00027,120]
[331834370,1720780587535,151.071219,0.00027,120]
[331834371,1720780591455,151.071219,0.00027,120]
[331834373,1720780611270,157.071219,0.00025,62]
[331834374,1720780639600,151.071219,0.00025,64]
[331834375,1720780657446,153.071219,0.00027,120]
[331834376,1720780674706,155.0,0.00011199,2]
[331834377,1720780682802,200.0,0.00011199,2]
[331834378,1720780689786,358.78684232,0.00011199,2]
[331834380,1720780753396,227.32181018,0.00011199,2]
[331834388,1720780917693,1060.89558215,0.00011199,2]
[331834389,1720780918583,150.0,0.00011199,2]
[331834390,1720780918603,150.0,0.00011199,2]
[331834391,1720780918623,21.6243541,0.00011199,2]
[331834392,1720780923836,150.0,9.768e-05,2]
[331834393,1720780923858,150.0,9.768e-05,2]
[331834394,1720780923880,50.44,9.768e-05,2]
[331834395,1720780935181,333.71499793,0.00011199,2]
[331834396,1720780936075,160.81217705,0.00011199,2]
[331834397,1720780945152,150.0,0.00011199,2]
[331834398,1720780945172,150.0,0.00011199,2]
[331834399,1720780945193,48.90717992,0.00011199,2]
[331834401,1720781006751,157.071219,0.00027,120]
[331834402,1720781021292,157.071219,0.00025,65]
[331834403,1720781030131,150.0,0.00011199,2]
[331834404,1720781030152,150.0,0.00011199,2]
[331834405,1720781030172,48.63433278,0.00011199,2]
[331834406,1720781127528,150.0,0.00011199,2]
[331834407,1720781127549,150.0,0.00011199,2]
[331834408,1720781127569,150.0,0.00011199,2]
[331834409,1720781127588,150.0,0.00011199,2]
[331834410,1720781127608,150.0,0.00011199,2]
[331834411,1720781127627,150.0,0.00011199,2]
[331834412,1720781127648,150.0,0.00011199,2]
[331834413,1720781127668,150.0,0.00011199,2]
[331834414,1720781127688,728.43993191,0.00011199,2]
[331834415,1720781137934,184.45501845,0.00011199,2]
[331834416,1720781137957,1261.99145987,0.00011199,2]
[331834417,1720781158266,150.0,0.00011199,2]
[331834418,1720781158288,208.78684232,0.00011199,2]
[331834419,1720781190735,161.32035324,0.00011359,2]
[331834420,1720781215840,200.0,0.00011199,2]
[331834421,1720781220226,724.99466785,0.00011199,2]
[331834422,1720781242417,227.32181018,0.00011199,2]
[331834423,1720781243528,857.54842,0.00011338,2]
[331834424,1720781285443,400.0,0.00011199,2]
[331834425,1720781315708,156.94113585,0.00011199,2]
[331834427,1720781336343,-150.0,0.00011395,2]
[331834428,1720781336375,-672.4,0.0001141,2]
[331834429,1720781336404,-155.8,0.00011459,2]
[331834430,1720781336436,-5743.67826813,0.00011477,2]
[331834431,1720781336474,-3830.5948254,0.00011477,2]
[331834432,1720781336508,-6721.87826813,0.00011477,2]
[331834433,1720781336556,-6721.87826813,0.00011477,2]
[331834434,1720781336668,-881.97037021,0.00011477,2]
[331834435,1720781336698,-451.01,0.000115,2]
[331834436,1720781336729,-500.0,0.00011539,2]
[331834437,1720781336759,-2127.43,0.00011554,2]
[331834438,1720781336791,-187.65,0.00011579,2]
[331834439,1720781336821,-250.0,0.00011589,2]
[331834440,1720781336853,-300.0,0.00011599,2]
[331834441,1720781336883,-2023.81789792,0.000116,2]
[331834442,1720781337098,-6721.87826813,0.000116,2]
[331834444,1720781377917,185.56,9.487e-05,2]
[331834445,1720781393254,635.03727763,0.00011199,2]
[331834459,1720781432866,-658.25,0.000116,2]
[331834460,1720781432878,-328.8373251,0.000116,2]
[331834461,1720781432925,-602.68900885,0.000116,2]
[331834462,1720781432935,-250.0,0.00011755,2]
[331834463,1720781432944,-150.0,0.0001189,2]
[331834464,1720781432954,-169.77,0.00011918,2]
[331834465,1720781432965,-299.99,0.00011971,2]
[331834466,1720781432974,-1986.35525885,0.00011972,2]
[331834467,1720781432983,-178.44,0.00011995,2]